bitfinex/quotes_ETHUSD_20240722
["timestamp","ask_amount","ask_price","bid_price","bid_amount"]
[1721643457966,5.25011,3497.3,3496.6,0.815714]
[1721643458271,2.85943,3497.2,3496.6,2.85991]
[1721643459074,2.85921,3497.5,3496.9,2.85967]
[1721643460472,3.4571368,3497.5,3496.9,2.85967]
[1721643460678,2.85921,3497.5,3496.9,2.85967]
[1721643461093,3.0688268,3497.6,3497.1,2.8595]
[1721643461374,4.77496021,3497.7,3497.1,2.8595]
[1721643461375,4.4759968,3497.7,3497.1,2.8595]
[1721643461976,3.4569968,3497.7,3497.2,2.85941]
[1721643462174,0.5979268,3497.7,3497.2,2.85941]
[1721643462406,0.5979268,3497.8,3497.3,0.34312443]
[1721643462565,0.5979268,3498.1,3497.6,2.85905]
[1721643462959,3.4615868,3498.2,3497.6,2.85905]
[1721643463368,0.6029268,3498.2,3497.8,2.85886]
[1721643463699,0.6029268,3498.2,3497.9,2.85885]
[1721643463918,0.6029268,3498.2,3498.0,2.85877]
[1721643463919,0.005,3498.2,3498.0,2.85877]
[1721643465113,0.6029268,3498.2,3497.8,5.928361]
[1721643465265,0.005,3498.2,3497.9,2.85885]
[1721643465463,0.6029268,3498.2,3497.9,2.85885]
[1721643466160,0.6029268,3498.2,3497.8,3.069491]
[1721643466359,0.005,3498.2,3497.8,3.069491]
[1721643466885,0.6029268,3498.2,3497.8,5.928421]
[1721643467082,0.6029268,3498.2,3497.9,0.8787491]
[1721643467263,0.6029268,3498.2,3498.0,2.85877]
[1721643467264,0.005,3498.2,3498.0,2.85877]
[1721643468985,0.005,3498.2,3498.1,2.85869]
[1721643469187,0.005,3498.2,3498.1,2.91585748]
[1721643469396,0.005,3498.2,3498.1,2.85869]
[1721643470486,0.005,3498.2,3498.1,5.71738]
[1721643470806,0.005,3498.2,3498.1,6.60178374]
[1721643472610,0.005,3498.2,3498.1,8.88618374]
[1721643474515,0.005,3498.2,3498.1,11.74487374]
[1721643474933,0.005,3498.2,3498.1,12.29487374]
[1721643475290,0.005,3498.2,3498.1,15.15356374]
[1721643476229,0.005,3499.0,3498.9,8.57412]
[1721643476434,0.005,3499.0,3498.9,16.82602]
[1721643477210,0.005,3499.0,3498.9,19.68406]
[1721643477827,0.005,3499.0,3498.9,16.82602]
[1721643478696,0.005,3499.0,3498.9,19.68406]
[1721643478899,1e-05,3499.0,3498.9,21.938287]
[1721643479343,1e-05,3499.0,3498.9,19.080247]
[1721643479638,1e-05,3499.0,3498.9,21.938287]
[1721643480837,0.005,3499.5,3499.4,11.43052]
[1721643481042,2.0,3500.0,3499.9,8.06914]
[1721643481217,13.89987904,3502.1,3499.9,8.06914]
[1721643481218,0.5979268,3502.3,3501.3,2.3547]
[1721643481543,3.0051841,3502.2,3501.2,2.85615]
[1721643481705,2.85544,3502.1,3501.3,2.85605]
[1721643481915,0.1498341,3502.2,3501.1,2.85616]
[1721643481916,2.85552,3502.0,3501.1,2.85616]
[1721643482218,2.3869,3502.1,3500.6,8.14634]
[1721643482465,2.3869,3502.1,3500.6,2.85664]
[1721643482466,2.85594,3501.5,3500.6,2.85664]
[1721643482626,2.85594,3501.5,3500.4,2.85681]
[1721643482627,2.85608,3501.3,3500.4,2.85675]
[1721643482963,2.85592,3501.5,3500.1,4.7317]
[1721643483250,2.85592,3501.5,3500.7,2.85655]
[1721643483748,9.8669,3502.1,3500.5,2.85671]
[1721643483952,0.1498341,3502.2,3500.2,2.85697]
[1721643483953,2.3888,3501.3,3500.2,2.85697]
[1721643484250,5.2449,3501.3,3500.6,2.85664]
[1721643484660,5.2449,3501.3,3499.9,0.806914]
[1721643484661,2.3888,3501.3,3499.9,0.806914]
[1721643484865,2.85657,3500.7,3499.7,2.85735]
[1721643485039,2.85688,3500.4,3499.5,2.85752]
[1721643485356,2.85688,3500.4,3499.4,2.85763]
[1721643485357,2.85688,3500.4,3499.6,2.85744]
[1721643486351,2.85666,3500.6,3499.8,2.85727]
[1721643486857,2.3888,3501.3,3499.2,2.4742]
[1721643487066,2.3888,3501.3,3499.7,2.85732]
[1721643487067,2.85651,3500.8,3499.7,2.85732]
[1721643487354,2.85683,3500.4,3499.7,2.85732]
[1721643487858,2.3078,3500.4,3499.3,0.833202]
[1721643488076,2.8571,3500.1,3499.3,2.85771]
[1721643488270,2.85694,3500.3,3499.2,2.85779]
[1721643488428,2.85706,3500.1,3499.2,3.143569]
[1721643489374,2.3078,3500.4,3499.3,2.85766]
[1721643489578,2.85715,3500.0,3499.3,2.85766]
[1721643489875,2.85732,3499.8,3499.2,0.285779]
[1721643490083,2.85732,3499.8,3499.1,2.85785]
[1721643490237,2.85715,3500.0,3498.8,2.85811]
[1721643490442,2.85736,3499.8,3499.1,2.85785]
[1721643490851,2.85739,3499.7,3498.9,2.85803]
[1721643491052,2.3078,3500.4,3499.0,2.85793]
[1721643491053,2.85731,3499.8,3499.0,2.85793]
[1721643491280,2.8574,3499.7,3499.0,2.85793]
[1721643492066,2.85714,3500.0,3498.9,1.120512]
[1721643492242,2.3078,3500.4,3499.3,2.85765]
[1721643492243,2.85691,3500.3,3499.3,2.85765]
[1721643492447,2.85712,3500.1,3499.3,2.85766]
[1721643492676,2.85721,3500.0,3499.3,2.85766]
[1721643492972,2.85723,3499.9,3498.7,2.4889]
[1721643493177,2.85717,3500.0,3499.0,2.85792]
[1721643493358,2.8574,3499.7,3499.0,2.85792]
[1721643493557,2.85722,3499.9,3499.1,2.85786]
[1721643493800,2.85731,3499.8,3498.9,2.85803]
[1721643493942,2.85747,3499.6,3498.9,2.85803]
[1721643494273,2.8569,3500.3,3498.7,5.34709]
[1721643494274,2.85733,3499.8,3499.0,2.85793]
[1721643494475,2.85733,3499.8,3498.7,5.34709]
[1721643494476,2.85731,3499.8,3498.8,2.85808]
[1721643494786,2.85731,3499.8,3498.8,2.8581]
[1721643494787,2.85755,3499.5,3498.8,2.8581]
[1721643495770,2.85764,3499.4,3498.6,2.85828]
[1721643496194,2.85764,3499.4,3498.7,2.85818]
[1721643496341,5.24257,3499.6,3498.8,2.85811]
[1721643496764,2.85768,3499.4,3498.6,2.85828]
[1721643497073,5.24261,3499.6,3498.3,5.2674]
[1721643497276,5.24261,3499.6,3498.8,2.85811]
[1721643497679,5.24257,3499.6,3498.6,2.85826]
[1721643497842,2.85755,3499.5,3498.5,2.85831]
[1721643498044,2.85787,3499.1,3498.3,2.85847]
[1721643498346,2.85812,3498.8,3498.1,2.85868]
[1721643498542,2.85756,3499.5,3497.9,2.85882]
[1721643498543,5.29404,3499.4,3497.9,2.85882]
[1721643498782,2.85821,3498.7,3498.0,2.85876]
[1721643498988,2.85804,3498.9,3498.0,2.85876]
[1721643499363,2.85821,3498.7,3498.0,2.85876]
[1721643499566,2.85845,3498.4,3497.6,10.1591]
[1721643499793,2.85829,3498.6,3497.7,2.859]
[1721643499794,5.22929,3498.6,3497.7,2.859]
[1721643499994,2.85847,3498.4,3497.7,2.859]
[1721643500296,5.22929,3498.6,3498.0,2.85876]
[1721643500501,5.22929,3498.6,3497.5,2.3389]
[1721643500502,2.85813,3498.8,3498.1,2.85868]
[1721643500865,5.34977,3499.0,3498.1,2.85868]
[1721643501071,5.34977,3499.0,3497.5,2.3389]
[1721643501072,2.4918,3499.0,3498.4,2.85842]
[1721643501587,5.34976,3499.0,3498.4,2.85842]
[1721643502311,2.4918,3499.0,3498.4,2.85842]
[1721643503983,2.3976,3499.4,3498.5,0.05716152]
[1721643504197,2.3976,3499.4,3497.9,2.85881]
[1721643504198,2.3976,3499.4,3498.6,2.85827]
[1721643504598,2.3976,3499.4,3498.7,2.85814]
[1721643504813,5.25524,3499.4,3498.7,2.85814]
[1721643505518,5.25524,3499.4,3498.8,2.85811]
[1721643505686,5.25524,3499.4,3498.6,2.85825]
[1721643506065,5.25524,3499.4,3498.7,2.85813]
[1721643506302,5.25524,3499.4,3498.8,2.85812]
[1721643508685,2.3976,3499.4,3498.6,2.85825]
[1721643508924,2.85779,3499.2,3498.5,2.85835]
[1721643509086,5.25524,3499.4,3498.7,2.8582]
[1721643509620,2.85772,3499.3,3498.7,2.8582]
[1721643509826,2.85772,3499.3,3498.6,2.85828]
[1721643510035,2.3976,3499.4,3498.6,2.85828]
[1721643510232,2.3976,3499.4,3498.8,2.85811]
[1721643510369,5.25524,3499.4,3498.7,2.8582]
[1721643510815,5.25524,3499.4,3498.5,2.85836]
[1721643510816,2.8578,3499.2,3498.5,2.85836]
[1721643511001,2.85787,3499.1,3498.5,2.85836]
[1721643512019,2.85777,3499.3,3498.5,2.85836]
[1721643512220,2.85782,3499.2,3498.5,2.85836]
[1721643512508,5.25524,3499.4,3498.7,2.8582]
[1721643513790,2.85772,3499.3,3498.5,2.8583]
[1721643514697,2.85779,3499.2,3498.6,2.85828]
[1721643515617,5.25524,3499.4,3498.6,2.85828]
[1721643515827,2.85773,3499.3,3498.6,2.85828]
[1721643517234,2.85782,3499.2,3498.6,2.85828]
[1721643517520,2.85782,3499.2,3498.3,2.85848]
[1721643517826,2.85804,3498.9,3498.3,2.85848]
[1721643518028,2.85804,3498.9,3498.0,3.0]
[1721643518238,2.85804,3498.9,3498.2,2.85858]
[1721643518926,2.85801,3499.0,3498.2,2.85858]
[1721643519097,2.85801,3499.0,3498.3,2.85852]
[1721643521319,2.85805,3498.9,3498.3,2.85852]
[1721643521518,2.85815,3498.8,3498.2,2.8586]
[1721643521732,5.14445,3498.8,3498.2,2.8586]
[1721643522236,5.14445,3498.8,3497.6,2.85906]
[1721643522237,2.85829,3498.6,3497.7,5.13168]
[1721643522530,2.85837,3498.5,3497.9,2.8588]
[1721643522735,2.8582,3498.7,3498.0,2.85876]
[1721643523035,2.8582,3498.7,3498.1,2.85868]
[1721643523616,2.2863,3498.8,3498.3,2.85847]
[1721643524246,2.85796,3499.0,3498.4,2.85842]
[1721643524942,2.4894,3499.1,3498.5,2.85836]
[1721643525169,3.4556668,3499.3,3498.7,2.85819]
[1721643525461,5.26385,3499.4,3498.8,2.85811]
[1721643526065,2.85771,3499.3,3498.6,5.71648]
[1721643526345,2.85771,3499.3,3498.7,2.85819]
[1721643526702,2.4062,3499.4,3498.6,2.85822]
[1721643527144,2.85772,3499.3,3498.6,2.85822]
[1721643527353,2.8578,3499.2,3498.6,2.85822]
[1721643528099,2.85787,3499.1,3498.4,2.85842]
[1721643528308,2.85787,3499.1,3498.5,2.85836]
[1721643529028,0.5979268,3499.2,3498.6,2.85823]
[1721643529229,2.858,3499.0,3498.4,2.85844]
[1721643529471,0.5979268,3499.1,3498.3,2.85851]
[1721643529669,2.85809,3498.9,3498.1,2.85863]
[1721643529977,2.3493,3499.0,3498.1,2.85863]
[1721643529978,2.3493,3499.0,3498.2,2.8586]
[1721643530135,2.3493,3499.0,3498.4,2.85844]
[1721643530464,2.9472268,3499.0,3498.4,2.85844]
[1721643530834,2.9472268,3499.0,3498.5,2.85836]
[1721643531023,2.9472268,3499.0,3498.6,2.85825]
[1721643531539,0.5979268,3499.0,3498.6,2.85825]
[1721643532066,0.5979268,3499.0,3498.4,2.85838]
[1721643532371,3.75469021,3499.2,3498.4,2.85838]
[1721643532372,0.5979268,3498.9,3498.4,2.85838]
[1721643532523,0.5979268,3498.9,3498.6,2.85827]
[1721643533042,0.5979268,3498.9,3498.4,2.85838]
[1721643533443,2.85799,3499.0,3498.4,2.85838]
[1721643533444,0.5979268,3498.8,3498.4,2.85838]
[1721643533845,0.5979268,3498.9,3498.4,2.85838]
[1721643534126,0.5979268,3498.9,3498.5,2.85833]
[1721643534478,0.5979268,3498.8,3498.5,2.85833]
[1721643536362,0.5979268,3498.7,3498.6,2.85827]
[1721643536664,0.5979268,3498.8,3498.5,2.85833]
[1721643536864,0.5979268,3498.7,3498.6,2.85826]
[1721643537181,0.5979268,3498.8,3498.6,2.85826]
[1721643537474,0.5979268,3498.7,3498.6,2.85826]
[1721643538737,0.5979268,3498.7,3498.6,5.71654]
[1721643538934,0.5979268,3498.7,3498.6,6.537304]
[1721643539427,0.5979268,3498.7,3498.6,2.85826]
[1721643540257,0.89689021,3498.8,3498.7,2.8582]
[1721643541056,0.89689021,3498.8,3498.7,5.7164]
[1721643542337,1.19585361,3498.9,3498.8,2.85812]
[1721643542752,1.19585361,3498.9,3498.5,2.85833]
[1721643542950,1.19585361,3498.9,3498.7,2.85819]
[1721643543261,1.48042891,3498.9,3498.7,2.85819]
[1721643543439,0.2845753,3498.8,3498.7,2.85819]
[1721643543633,1.19585361,3498.8,3498.5,2.85833]
[1721643543838,0.90024042,3498.6,3498.3,2.8585]
[1721643544148,0.90024042,3498.5,3498.0,2.85876]
[1721643544343,0.90024042,3498.4,3498.2,2.85856]
[1721643544541,0.90024042,3498.4,3498.3,2.85853]
[1721643545876,0.90024042,3498.4,3498.3,5.71706]
[1721643547334,0.90024042,3498.4,3498.3,2.85853]
[1721643547876,0.28475839,3498.4,3498.3,2.85853]
[1721643548079,1.19585361,3498.5,3498.3,2.85853]
[1721643548299,1.19585361,3498.5,3498.4,2.85844]
[1721643549525,1.19585361,3498.5,3498.3,2.85852]
[1721643550603,1.19585361,3498.5,3498.1,2.85867]
[1721643550745,0.90037851,3498.3,3498.2,2.85853]
[1721643551190,0.90037851,3498.3,3498.2,5.71714]
[1721643551347,0.90037851,3498.4,3498.3,2.85853]
[1721643557124,0.28472701,3498.4,3498.1,2.85862]
[1721643557400,1.19585361,3498.5,3498.1,2.85862]
[1721643557401,0.60018845,3498.2,3498.1,2.85862]
[1721643557959,0.60018845,3498.2,3497.8,2.85891]
[1721643558161,0.60018845,3497.9,3497.8,2.85891]
[1721643558380,0.60018845,3497.9,3497.5,2.85911]
[1721643558597,0.60018845,3497.8,3497.6,3.0]
[1721643558761,0.90028268,3497.9,3497.6,3.0]
[1721643558762,0.60018845,3497.7,3497.6,2.8591]
[1721643559082,0.90028268,3497.9,3497.6,3.0]
[1721643559083,0.60018845,3497.8,3497.6,3.0]
[1721643559247,0.60018845,3497.8,3497.7,5.71804]
[1721643559453,0.60018845,3497.9,3497.8,2.85893]
[1721643559864,0.60018845,3497.9,3497.8,5.71786]
[1721643560095,0.60018845,3498.1,3497.9,2.85885]
[1721643560275,0.90028268,3498.1,3498.0,2.85877]
[1721643560471,0.90028268,3498.2,3498.1,2.85869]
[1721643562701,0.90028268,3498.2,3497.6,2.85907]
[1721643562873,0.59995279,3497.9,3497.8,2.85892]
[1721643563210,0.5999762,3497.9,3497.8,2.85892]
[1721643563371,0.89992918,3498.0,3497.8,2.85892]
[1721643563566,0.89992918,3498.0,3497.9,2.85885]
[1721643566473,0.89992918,3498.1,3497.9,2.85885]
[1721643568432,0.89992918,3498.1,3498.0,2.85877]
[1721643572535,0.89992918,3498.1,3498.0,5.71754]
[1721643573319,0.89992918,3498.1,3498.0,9.675123]
[1721643573530,10.8191,3499.1,3498.8,2.85812]
[1721643573822,2.3221,3499.1,3498.8,5.71616]
[1721643574114,2.3221,3499.1,3498.9,2.85799]
[1721643575757,2.3221,3499.1,3498.8,2.8581]
[1721643576054,2.3221,3499.1,3498.6,2.85824]
[1721643576055,2.3221,3499.1,3498.6,2.85821]
[1721643576259,1.017,3499.0,3498.6,2.85821]
[1721643576655,1.017,3499.0,3497.9,9.6401]
[1721643576656,1.017,3499.0,3498.4,5.71679]
[1721643576954,1.017,3499.0,3498.6,5.71649]
[1721643577159,1.017,3499.0,3498.6,2.85821]
[1721643577342,1.017,3499.0,3498.6,2.85823]
[1721643577548,1.017,3499.0,3498.6,2.85822]
[1721643578728,3.87496,3499.0,3498.4,2.85837]
[1721643579058,2.3221,3499.1,3498.4,2.85842]
[1721643579059,1.017,3498.8,3498.4,2.85842]
[1721643580563,3.875,3499.0,3498.4,2.85842]
[1721643581373,1.017,3498.8,3498.4,2.85842]
[1721643581872,1.017,3498.8,3498.2,5.7171]
[1721643582180,1.017,3498.8,3498.1,2.85863]
[1721643582347,0.59954816,3498.4,3498.3,2.8585]
[1721643583847,0.89932224,3498.5,3498.1,2.85863]
[1721643584166,0.59962299,3498.3,3498.2,2.85861]
[1721643586986,0.59962299,3498.4,3498.2,2.85861]
[1721643587194,0.59962299,3498.4,3498.3,5.71706]
[1721643587407,0.59962299,3498.5,3498.4,2.85844]
[1721643590308,0.59962299,3498.5,3498.4,5.71688]
[1721643595886,0.89932224,3498.6,3498.4,2.85844]
[1721643596096,0.89932224,3498.6,3498.4,2.85838]
[1721643596480,0.89932224,3498.6,3498.5,2.85836]
[1721643596983,1.19909632,3498.7,3498.5,2.85836]
[1721643597185,0.89949009,3498.6,3498.5,2.85836]
[1721643599207,1.19909632,3498.8,3498.6,2.85828]
[1721643599208,0.89949009,3498.7,3498.6,2.85828]
[1721643599591,0.89949009,3498.7,3498.6,5.71656]
[1721643600625,0.89949009,3498.7,3498.6,2.85828]
[1721643601937,0.89949009,3498.8,3498.6,2.85828]
[1721643602724,0.89949009,3498.8,3498.5,2.8583]
[1721643602927,1.91649009,3498.6,3498.2,2.85856]
[1721643603141,0.59961481,3498.4,3498.2,2.85856]
[1721643603441,0.59961846,3498.4,3498.3,2.85853]
[1721643603625,0.89949009,3498.5,3498.4,2.85844]
[1721643603965,0.89949009,3498.6,3498.5,2.85836]
[1721643606566,0.89949009,3498.6,3498.5,5.71672]
[1721643606777,0.89949009,3498.8,3498.7,2.8582]
[1721643606982,0.89949009,3498.8,3498.7,5.7164]
[1721643607175,1.19909632,3498.9,3498.8,2.85812]
[1721643609549,2.4908,3498.8,3498.4,2.85838]
[1721643609804,2.4908,3498.8,3497.7,10.3]
[1721643609805,1.91662537,3498.5,3498.0,2.85874]
[1721643610016,1.91662537,3498.5,3497.7,10.3]
[1721643610017,1.91673052,3498.2,3497.7,2.85896]
[1721643610169,0.5998738,3497.9,3497.7,2.85896]
[1721643610371,0.5998738,3497.9,3497.5,2.85917]
[1721643610619,0.5998738,3497.8,3497.7,2.859]
[1721643611221,0.5998738,3497.9,3497.6,2.85904]
[1721643611428,0.89973052,3498.0,3497.6,2.85904]
[1721643611429,3.0051738,3497.8,3497.6,2.85904]
[1721643611633,0.5998738,3497.7,3497.6,2.85904]
[1721643612222,2.4576,3497.6,3497.1,5.85945]
[1721643612439,0.59985163,3497.3,3497.1,5.85945]
[1721643612709,0.59985163,3497.2,3497.1,3.0]
[1721643613212,0.59985163,3497.3,3497.0,3.0]
[1721643613592,0.59985163,3497.3,3496.7,2.85981]
[1721643613593,1.017,3497.3,3496.7,2.85981]
[1721643613911,0.5997248,3497.0,3496.7,2.85981]
[1721643614218,1.017,3497.1,3496.9,2.85967]
[1721643614219,0.5997248,3497.1,3496.9,2.85967]
[1721643615108,0.5997248,3497.1,3497.0,2.85959]
[1721643615288,0.5997248,3497.3,3497.2,2.85943]
[1721643615475,0.5997248,3497.5,3497.3,2.85934]
[1721643616105,0.5997248,3497.5,3497.4,2.85926]
[1721643616311,1.19950049,3497.8,3497.5,5.71836]
[1721643616312,0.5997248,3497.6,3497.5,5.71836]
[1721643616493,0.5997248,3497.6,3497.5,6.42226023]
[1721643616671,0.89977745,3497.8,3497.6,2.85905]
[1721643616672,0.5997248,3497.8,3497.6,2.85905]
[1721643616871,0.5997248,3497.8,3497.7,2.85902]
[1721643618106,0.5997248,3497.9,3497.7,2.85902]
[1721643618687,0.5997248,3497.9,3497.8,2.85893]
[1721643618988,0.5997248,3498.0,3497.8,2.85893]
[1721643619317,0.5997248,3498.0,3497.9,2.85885]
[1721643619521,0.5997248,3498.1,3497.8,2.85893]
[1721643620051,0.5997248,3498.2,3497.9,2.85885]
[1721643620225,0.5997248,3498.2,3497.8,2.85893]
[1721643620547,0.5997248,3498.1,3497.6,2.85903]
[1721643621120,0.5997248,3498.0,3497.6,2.85904]
[1721643622293,0.5997248,3498.1,3497.6,2.85904]
[1721643622517,3.75839745,3498.2,3497.6,2.85904]
[1721643622518,0.5997248,3498.0,3497.6,2.85904]
[1721643622827,3.4585448,3498.0,3497.4,2.85919]
[1721643623001,0.5997248,3497.8,3497.4,2.85919]
[1721643623585,3.0154248,3497.9,3497.4,2.85919]
[1721643624928,3.0154248,3497.9,3497.5,2.85915]
[1721643625092,2.4157,3497.9,3497.5,2.85915]
[1721643625418,0.5997248,3498.0,3497.6,2.85909]
[1721643625625,0.5997248,3498.0,3497.0,0.571926]
[1721643625814,0.5997248,3498.1,3497.7,2.85896]
[1721643626993,3.0920248,3498.2,3497.8,2.85891]
[1721643627427,0.5997248,3498.1,3497.5,2.85914]
[1721643627722,3.0920248,3498.2,3497.5,2.85914]
[1721643627897,3.0920248,3498.2,3497.7,2.85897]
[1721643628102,0.5997248,3498.1,3497.7,2.85897]
[1721643628514,3.0920248,3498.2,3497.7,2.85897]
[1721643629026,3.0920248,3498.2,3497.7,5.71794]
[1721643629230,3.0920248,3498.2,3497.7,2.85897]
[1721643629595,3.0920248,3498.2,3497.8,2.85893]
[1721643631127,0.5997248,3498.1,3497.8,2.85893]
[1721643631331,3.0920248,3498.2,3497.8,2.85893]
[1721643631532,0.5997248,3498.1,3497.8,2.85893]
[1721643631743,3.0920248,3498.2,3497.8,2.85893]
[1721643632236,0.0478247,3498.1,3497.8,2.85893]
[1721643632822,0.6475495,3498.1,3497.8,2.85893]
[1721643633224,0.6475495,3498.1,3497.5,2.85914]
[1721643633428,0.5997248,3498.0,3497.5,2.85914]
[1721643633629,0.04777788,3498.0,3497.5,2.85914]
[1721643634138,0.04777788,3498.0,3497.7,2.85895]
[1721643639012,0.04777788,3498.0,3497.6,2.85909]
[1721643639225,0.64750268,3498.0,3497.7,2.85901]
[1721643639412,0.04777788,3498.0,3497.7,5.71792]
[1721643639612,0.04777788,3498.0,3497.7,2.85895]
[1721643640738,0.64750268,3498.0,3497.7,2.85895]
[1721643642611,0.64750268,3498.0,3497.5,2.85913]
[1721643642812,3.50628268,3498.0,3497.5,2.85913]
[1721643643216,2.85899,3497.8,3497.1,2.85943]
[1721643643512,5.16960335,3497.7,3497.1,4.7521776]
[1721643643717,2.31058335,3497.7,3497.2,2.85941]
[1721643643917,1.018,3497.4,3496.8,7.3]
[1721643644118,1.018,3497.4,3496.5,2.85994]
[1721643644119,4.4772048,3497.2,3496.5,2.85994]
[1721643644336,5.19841,3497.3,3496.5,2.85994]
[1721643644337,1.018,3497.0,3496.5,2.85994]
[1721643644537,1.6177248,3497.0,3496.5,2.85994]
[1721643644731,0.04262079,3496.9,3496.5,2.85994]
[1721643645146,0.04262079,3496.9,3496.3,2.86014]
[1721643645335,0.04262079,3496.9,3496.4,2.86007]
[1721643645720,0.64234559,3496.9,3496.4,2.86007]
[1721643646151,0.04262079,3496.9,3496.4,2.86007]
[1721643647237,2.90229079,3496.9,3496.2,2.86018]
[1721643647440,2.90229079,3496.9,3496.3,2.86011]
[1721643648249,0.04262079,3496.9,3496.4,2.86008]
[1721643648630,3.4592348,3497.1,3496.4,2.86008]
[1721643648828,2.90230516,3497.0,3496.4,2.86008]
[1721643649035,3.50202996,3497.0,3496.4,2.86008]
[1721643649625,0.04270516,3497.0,3496.5,2.85999]
[1721643650022,2.90234516,3497.0,3496.3,2.8601]
[1721643650227,2.90234516,3497.0,3496.4,2.86006]
[1721643651978,2.85968,3496.9,3496.2,2.86018]
[1721643652184,2.85968,3496.9,3496.3,2.86015]
[1721643652325,0.04042367,3496.8,3496.3,2.86015]
[1721643653043,0.04042367,3496.8,3496.4,2.86007]
[1721643653579,0.04034992,3496.7,3496.4,2.86007]
[1721643655366,0.03950866,3496.6,3496.4,2.86007]
[1721643657593,0.03950866,3496.6,3496.4,5.72008]
[1721643657752,0.03950866,3496.6,3496.4,2.86001]
[1721643657958,0.03950866,3496.6,3496.5,2.86]
[1721643660298,0.03950866,3496.6,3496.5,11.566607]
[1721643660458,0.03950866,3496.6,3496.5,12.116607]
[1721643660643,0.04034992,3496.7,3496.6,8.57976]
[1721643660865,0.04034992,3496.7,3496.6,12.12976]
[1721643662510,0.04034992,3496.7,3496.6,17.46168]
[1721643662675,0.04034992,3496.7,3496.6,19.5094487]
[1721643665903,0.04034992,3496.7,3496.6,16.6495287]
[1721643667110,0.04034992,3496.7,3496.6,11.3176087]
[1721643667407,0.04034992,3496.7,3496.6,10.7676087]
[1721643668700,0.04034992,3496.7,3496.6,11.3176087]
[1721643669408,0.04034992,3496.7,3496.6,12.12976]
[1721643674197,0.04034992,3496.7,3496.6,13.14776]
[1721643676597,0.04034992,3496.7,3496.6,10.28784]
[1721643677376,0.04034992,3496.7,3496.6,13.14776]
[1721643678085,0.04034992,3496.7,3496.6,18.27018]
[1721643678290,0.04034992,3496.7,3496.6,20.13846391]
[1721643678683,9.92e-06,3496.7,3496.6,20.55112302]
[1721643678921,2.3116,3498.0,3497.9,2.85885]
[1721643679232,2.34460189,3498.0,3497.9,2.85885]
[1721643680237,2.34460189,3498.0,3497.9,5.7177]
[1721643681603,0.03300189,3498.0,3497.9,5.7177]
[1721643682008,2.3219,3498.3,3498.0,2.85875]
[1721643682935,2.3219,3498.3,3498.1,2.85867]
[1721643683139,2.3219,3498.3,3498.2,2.85861]
[1721643683342,0.89977745,3498.6,3497.8,2.91603855]
[1721643683343,2.9003248,3498.6,3497.8,2.91603855]
[1721643683635,2.3006,3498.6,3498.5,2.85836]
[1721643683985,2.3006,3498.6,3498.5,5.71672]
[1721643684107,2.9536248,3499.0,3498.6,2.85825]
[1721643684312,2.9536248,3499.0,3498.5,2.85836]
[1721643684313,0.5997248,3498.9,3498.5,2.85831]
[1721643684815,0.5997248,3498.8,3498.3,2.85849]
[1721643685145,0.5997248,3498.8,3498.4,2.85844]
[1721643685718,0.5997248,3498.8,3498.3,2.85849]
[1721643685919,0.5997248,3498.8,3498.1,2.85862]
[1721643686123,2.4839,3498.7,3498.2,3.40857]
[1721643686444,2.4839,3498.7,3497.7,7.3]
[1721643686445,2.4839,3498.5,3497.8,2.85887]
[1721643686739,0.03305412,3498.4,3497.8,2.85887]
[1721643686944,2.89150412,3498.4,3497.8,2.85887]
[1721643687236,2.4839,3498.3,3497.7,2.85896]
[1721643687610,0.0329592,3498.2,3497.8,2.85893]
[1721643687804,0.0329592,3498.2,3497.9,2.85885]
[1721643688008,2.4839,3498.3,3497.9,2.85885]
[1721643688521,0.03292863,3498.2,3497.9,2.85885]
[1721643688719,2.4839,3498.3,3497.9,2.85885]
[1721643688924,0.03249269,3498.2,3497.9,2.85885]
[1721643689155,2.4839,3498.3,3497.9,2.85885]
[1721643689464,0.0329295,3498.2,3497.9,2.85885]
[1721643689613,0.0329295,3498.2,3498.0,2.85872]
[1721643689808,2.4839,3498.3,3498.0,2.85872]
[1721643690014,0.03288766,3498.1,3498.0,2.85872]
[1721643690262,2.4839,3498.3,3498.0,2.85872]
[1721643690765,0.0329295,3498.2,3497.9,2.85885]
[1721643690963,0.0329295,3498.2,3498.1,2.85869]
[1721643691146,2.4839,3498.3,3498.1,2.85869]
[1721643691455,0.03320575,3498.2,3498.1,2.85869]
[1721643691665,0.03320575,3498.2,3497.9,2.85879]
[1721643691846,2.4839,3498.3,3497.8,2.85888]
[1721643692058,0.03287172,3498.1,3497.9,2.85884]
[1721643692345,2.4839,3498.3,3497.9,2.85884]
[1721643692346,0.03282989,3498.0,3497.9,2.85884]
[1721643692662,2.4839,3498.3,3497.9,2.85884]
[1721643692842,0.03282989,3498.0,3497.9,2.85884]
[1721643693047,2.4839,3498.3,3497.9,2.85884]
[1721643693348,2.4839,3498.3,3498.0,2.85876]
[1721643693512,0.03295745,3498.2,3498.0,2.85876]
[1721643693715,2.4839,3498.3,3497.9,2.85885]
[1721643693946,2.4839,3498.3,3497.8,2.85893]
[1721643693947,0.5997248,3498.5,3498.0,3.430479]
[1721643694266,0.5997248,3498.5,3497.5,2.3797]
[1721643694267,2.3261,3498.6,3498.1,2.85866]
[1721643694562,2.3261,3498.6,3498.0,2.85877]
[1721643694563,2.85839,3498.5,3498.0,2.85877]
[1721643694721,2.92413186,3498.6,3498.1,2.85869]
[1721643694924,2.3261,3498.6,3498.1,2.85869]
[1721643695515,2.92413186,3498.6,3498.2,2.8586]
[1721643695720,2.3261,3498.6,3498.2,2.8586]
[1721643696142,2.3261,3498.6,3498.0,2.8587]
[1721643696443,2.3261,3498.6,3498.1,2.85865]
[1721643697446,2.92413186,3498.6,3498.1,2.85865]
[1721643699245,0.59803186,3498.5,3498.1,2.85865]